[Event "FRA-ch Teams Top 16-B 2022"]
[Site "Chartres"]
[Date "2022.06.12"]
[Round "4.32"]
[White "Monpeurt, Cyrielle"]
[Black "Gennesseaux, Gabrielle"]
[Result "1/2-1/2"]
[ECO "C01"]
[WhiteElo "2172"]
[BlackElo "1794"]
[Annotator "TA"]
[PlyCount "98"]
[EventDate "2022.06.09"]
[EventType "team-tourn"]
[EventCountry "FRA"]
[SourceTitle "playchess.com"]
[Source "ChessBase"]
[SourceQuality "1"]
[TimeControl "40/5400+30:1800+30"]

{[%evp 9,98,0,0,0,-10,-11,32,13,26,23,27,24,16,21,15,10,16,0,0,0,0,0,0,0,0,0,0,0,0,0,0,0,25,22,25,19,21,26,30,6,20,0,7,5,13,3,10,2,34,9,24,22,16,14,61,52,124,63,72,18,15,18,19,0,0,4,41,6,8,8,8,3,9,11,10,6,13,0,8,7,31,13,13,0,8,0,7,0,0,0,0]} 1. e4 {[%emt 0:00:04]} e6 {[%emt 0:00:06]} 2. d4 {[%emt 0:00:05]} d5 {[%emt 0:00:04]} 3. Bd3 {[%emt 0:00:05][%cal Bf1d3,Bd3e4,Be4f3][%mdl 32]} dxe4 {[%emt 0:04:56]} 4. Bxe4 {[%emt 0:00:16]} Nf6 {[%emt 0:00:11]} 5. Bf3 {[%emt 0:00:06]} Be7 {[%emt 0:03:36]} 6. Ne2 {[%emt 0:01:16] C01: French: Exchange Variation.} O-O {[%emt 0:01:16]} 7. O-O {[%emt 0:01:33]} Nbd7 {[%emt 0:01:24]} 8. Nbc3 {[%emt 0:04:30] White is slightly better.} c6 {[%emt 0:04:09]} 9. Re1 {[%emt 0:04:14]} e5 {[%emt 0:04:19] [#]} 10. Ng3 $146 {[%emt 0:03:30]} ({Predecessor:} 10. Be3 Qc7 11. Ng3 Re8 12. d5 cxd5 13. Nxd5 Nxd5 14. Bxd5 Nf6 15. Bb3 Bd7 16. h3 {1-0 (56) Petrova,K (2259)-Sikorova,O (2248) Prague 2019}) 10... exd4 {[%emt 0:02:33]} 11. Qxd4 {[%emt 0:00:18]} Bc5 {[%emt 0:05:32]} 12. Qh4 {[%emt 0:04:00]} Re8 {[%emt 0:14:58]} 13. Bf4 {[%emt 0:16:51]} Nf8 {[%emt 0:13:38]} 14. Rxe8 {[%emt 0:06:15]} Qxe8 {[%emt 0:01:17]} 15. Nge4 {[%emt 0:00:10]} Nxe4 {[%emt 0:00:52]} 16. Nxe4 {[%emt 0:00:12]} Ng6 {[%emt 0:02:00]} 17. Qg3 {[%emt 0:00:38]} Be7 {[%emt 0:15:47] [#] aiming for ...Bh4.} 18. Nd6 {[%emt 0:07:12]} Qf8 {[%emt 0:00:37] White must now prevent ...Bh4.} 19. Nxc8 {[%emt 0:00:59]} Rxc8 {[%emt 0:00:07]} 20. Be3 {[%emt 0:02:04]} Bd6 {[%emt 0:04:25]} 21. Qg5 {[%emt 0:02:44]} a6 {[%emt 0:01:37]} 22. Rd1 {[%emt 0:05:42]} Re8 {[%emt 0:03:15]} 23. Qa5 {[%emt 0:05:00]} Qe7 {[%emt 0:03:22]} 24. Qd2 {[%emt 0:05:08]} Bc7 {[%emt 0:03:36]} 25. b3 {[%emt 0:04:53]} Ne5 {[%emt 0:03:13]} 26. Be2 {[%emt 0:00:27]} Rd8 {[%emt 0:01:40]} 27. Qc1 {[%emt 0:02:14]} Rxd1+ {[%emt 0:01:15]} 28. Qxd1 {[%emt 0:00:07]} h6 {[%emt 0:00:45]} 29. Qd4 {[%emt 0:02:15]} Nd7 {[%emt 0:01:54]} 30. Qg4 {[%emt 0:03:21]} Nf6 {[%emt 0:01:36]} 31. Qc8+ {[%emt 0:00:16]} Ne8 {[%emt 0:00:55]} (31... Kh7 $11) 32. g3 {[%emt 0:02:09]} Bd6 {[%emt 0:00:40]} ({Better is} 32... Bd8 $14) 33. Bg4 {[%emt 0:02:00] White is more active.} (33. Bd3 $16) 33... Kh7 $1 $14 {[%emt 0:00:51]} 34. Bf5+ {[%emt 0:03:17] This bishop pair is nice.} (34. Qd7 $16) 34... g6 $11 {[%emt 0:00:04]} 35. Bd3 {[%emt 0:00:03]} Nf6 {[%emt 0:00:16]} (35... h5 {keeps more tension.} 36. Bd4 Nf6 37. Kg2 Qd7) 36. Qh3 {[%emt 0:00:21]} h5 {[%emt 0:00:45]} 37. Qh4 {[%emt 0:00:39]} Nd5 {[%emt 0:00:53]} 38. Bg5 {[%emt 0:03:54]} (38. Qxh5+ $5 Kg8 39. Qg5 $14) 38... Qe1+ {[%emt 0:00:26]} 39. Kg2 {[%emt 0:00:11] [#] Strongly threatening Qxh5+.} Kg7 {[%emt 0:00:38]} 40. Qd4+ {[%emt 0:07:54]} Qe5 {[%emt 0:00:28]} (40... Be5 {seems wilder.} 41. Bd2 Bxd4 42. Bxe1 Kf6) 41. Qxe5+ {[%emt 0:31:15]} Bxe5 {[%emt 0:30:06][%mdl 4096] Endgame KBB-KBN} 42. c4 {[%emt 0:00:00]} Nc7 {[%emt 0:00:00]} 43. Be3 {[%emt 0:00:00]} Ne6 {[%emt 0:00:00]} 44. f4 {[%emt 0:00:00]} Bd6 {[%emt 0:00:00]} 45. Kf3 {[%emt 0:00:00]} f5 {[%emt 0:00:00] The position is equal.} 46. Ke2 {[%emt 0:00:00]} Kf6 {[%emt 0:00:00]} 47. Kf3 {[%emt 0:00:00]} Ke7 {[%emt 0:00:00]} 48. h3 {[%emt 0:00:00]} a5 {[%emt 0:00:00]} 49. Bb1 {[%emt 0:00:00]} Kf6 {[%emt 0:00:00] Weighted Error Value: White=0.11 (very precise) /Black=0.08 (flawless)} 1/2-1/2

[Event "FRA-ch Teams Top 16-B 2022"]
[Site "Chartres"]
[Date "2022.06.13"]
[Round "5.1"]
[White "Neiksans, Arturs"]
[Black "Esipenko, Andrey"]
[Result "1/2-1/2"]
[ECO "C47"]
[WhiteElo "2579"]
[BlackElo "2709"]
[Annotator "TA"]
[PlyCount "38"]
[EventDate "2022.06.09"]
[EventType "team-tourn"]
[EventCountry "FRA"]
[SourceTitle "playchess.com"]
[Source "ChessBase"]
[SourceQuality "1"]
[TimeControl "40/5400+30:1800+30"]

{[%evp 21,38,6,6,0,0,-4,17,10,20,7,18,0,14,6,43,0,29,25,47]} 1. e4 {[%emt 0:00:03]} e5 {[%emt 0:00:21]} 2. Nf3 {[%emt 0:00:05]} Nc6 {[%emt 0:00:08]} 3. Nc3 {[%emt 0:00:15]} Nf6 {[%emt 0:01:23]} 4. d4 {[%emt 0:00:05]} exd4 {[%emt 0:04:04]} 5. Nxd4 {[%emt 0:00:15]} Bb4 {[%emt 0:00:16]} 6. Nxc6 {[%emt 0:00:07]} bxc6 {[%emt 0:00:10]} 7. Bd3 {[%emt 0:00:06]} O-O {[%emt 0:01:08]} 8. O-O {[%emt 0:00:06]} d5 {[%emt 0:02:07]} 9. exd5 {[%emt 0:00:16]} cxd5 {[%emt 0:00:06]} 10. Bg5 {[%emt 0:00:28]} Be6 {[%emt 0:01:55]} 11. Qf3 {[%emt 0:08:46]} Be7 {[%emt 0:07:10]} 12. Qg3 {[%emt 0:11:17] [#] C47: Scotch Four Knights and Four Knights with 4 g3.} c5 $146 {[%emt 0:22:11]} ({Predecessor:} 12... Nh5 13. Bxe7 Qxe7 14. Qe5 Nf6 15. Rfe1 c6 16. h3 Rfe8 17. Re3 Nd7 18. Qf4 Qf6 19. Qxf6 Nxf6 {1-0 (38) Walisiak,R-Jagdhuber,H Benidorm 1985}) 13. Rad1 {[%emt 0:13:31][%cal Od3c4]} Qb8 {[%emt 0:12:17]} 14. Bf4 {[%emt 0:24:22] The position is equal.} Qb4 {[%emt 0:08:09] [#] Hoping for ...Nh5.} 15. a3 {[%emt 0:04:33]} Qb6 {[%emt 0:13:04]} 16. Bh6 {[%emt 0:09:39][%csl Gh6][%cal Rg3g7]} Ne8 {[%emt 0:04:22]} 17. b3 {[%emt 0:06:08]} Kh8 {[%emt 0:05:01]} 18. Bc1 {[%emt 0:02:00]} Bf6 {[%emt 0:02:13]} 19. Ne2 {[%emt 0:02:37]} g6 {[%emt 0:06:20] Weighted Error Value: White=0.09 (flawless) /Black=0.10 (very precise)} 1/2-1/2

[Event "FRA-ch Teams Top 16-B 2022"]
[Site "Chartres"]
[Date "2022.06.13"]
[Round "5.2"]
[White "Moussard, Jules"]
[Black "Housieaux, David"]
[Result "1-0"]
[ECO "C05"]
[WhiteElo "2651"]
[BlackElo "2412"]
[Annotator "TA"]
[PlyCount "73"]
[EventDate "2022.06.09"]
[EventType "team-tourn"]
[EventCountry "FRA"]
[SourceTitle "playchess.com"]
[Source "ChessBase"]
[SourceQuality "1"]
[TimeControl "40/5400+30:1800+30"]

{[%evp 15,73,0,31,17,12,0,21,18,91,59,93,95,96,93,96,85,110,92,103,72,95,61,91,94,129,131,118,112,112,64,59,57,64,61,175,171,182,183,184,171,179,174,120,111,293,301,268,267,536,491,496,465,453,429,1240,1274,1333,1325,29993,29994]} 1. e4 {[%emt 0:01:41][%cal Be2e4,Be4e5][%mdl 32]} e6 {[%emt 0:00:30]} 2. d4 {[%emt 0:00:05]} d5 {[%emt 0:00:06]} 3. Nd2 {[%emt 0:00:12]} Nf6 {[%emt 0:04:50]} 4. e5 {[%emt 0:00:40]} Nfd7 {[%emt 0:00:07]} 5. c3 {[%emt 0:00:55]} c5 {[%emt 0:02:26]} 6. f4 {[%emt 0:00:15]} Nc6 {[%emt 0:00:45]} 7. Ndf3 {[%emt 0:00:09]} Qb6 {[%emt 0:01:16]} 8. a3 {[%emt 0:00:14]} a5 {[%emt 0:02:18]} 9. b3 {[%emt 0:00:11] C05: French Tarrasch: 3...Nf6 4 e5 Nfd7, 5 f4 and 5 Bd3 sidelines.} Be7 {[%emt 0:01:40]} 10. h4 {[%emt 0:00:29]} h5 {[%emt 0:04:01] [#]} 11. Be2 $146 {[%emt 0:00:54] The position is equal.} ({Predecessor:} 11. Nh3 cxd4 12. cxd4 f5 13. Be3 Bxa3 14. Be2 Bb4+ 15. Kf1 g6 16. Nf2 Ndb8 17. Nd3 {½-½ (34) Sethuraman,S (2415)-Ulybin,M (2511) New Delhi 2009}) 11... f6 {[%emt 0:08:53]} (11... Bd8 $11) 12. Nh3 {[%emt 0:00:31]} cxd4 {[%emt 0:14:27]} 13. cxd4 {[%emt 0:02:25]} Ndb8 {[%emt 0:01:26]} 14. Qd3 {[%emt 0:12:32]} f5 {[%emt 0:06:24]} 15. O-O {[%emt 0:01:12]} Na6 {[%emt 0:00:40]} 16. Bd2 {[%emt 0:04:12]} Bd7 {[%emt 0:00:56]} 17. Rfb1 {[%emt 0:01:08]} Nc7 {[%emt 0:11:49]} 18. Nf2 {[%emt 0:03:42][%cal Bh3f2,Bf2d3,Bd3c5][%mdl 32]} Nd8 {[%emt 0:07:27]} 19. Qe3 {[%emt 0:03:36]} Nb5 {[%emt 0:01:14]} 20. b4 {[%emt 0:01:58]} a4 {[%emt 0:03:37]} 21. Nd3 {[%emt 0:01:11]} Nc7 {[%emt 0:00:26]} 22. b5 {[%emt 0:09:44]} (22. Nc5 $16) 22... Bxb5 $14 {[%emt 0:00:21]} 23. Bb4 {[%emt 0:02:43]} Bxb4 {[%emt 0:04:49]} 24. Rxb4 {[%emt 0:02:58] Nc5 is the strong threat.} Nc6 {[%emt 0:00:06]} (24... Na6 $14) 25. Rb2 $18 {[%emt 0:00:09] Strongly threatening Rc1.} Na5 {[%emt 0:05:16]} 26. Nc5 {[%emt 0:02:55]} Nc4 {[%emt 0:01:51]} 27. Bxc4 {[%emt 0:01:32]} dxc4 {[%emt 0:00:01]} 28. Ng5 {[%emt 0:00:52]} Rh6 {[%emt 0:01:57]} (28... Nd5 $2 29. Qg3 Rh6 30. Ngxe6 Rxe6 31. Nxe6 Qxe6 32. Rxb5 $18) 29. Rab1 {[%emt 0:06:02] Threatens to win with Qe2. White is much more active. The black rooks are badly placed.} Rd8 $2 {[%emt 0:01:28] [#] This costs Black the game.} (29... Qc6 $16) 30. Nxa4 $1 {[%emt 0:03:10] Pair of Knights!} Qc6 {[%emt 0:08:17]} (30... Qxd4 $2 31. Qxd4 Rxd4 32. Rxb5 Nxb5 33. Rxb5 $18) 31. Nc3 {[%emt 0:01:52]} Nd5 $2 {[%emt 0:01:07]} (31... Ba6 32. Rb6 Nd5 33. Rxc6 Nxe3 34. Rxe6+ Kd7) 32. Nxd5 {[%emt 0:00:08]} Rxd5 {[%emt 0:00:01]} 33. a4 {[%emt 0:00:13][%cal Rb2b5]} Ba6 {[%emt 0:01:03]} 34. Rb6 {[%emt 0:00:06]} Qd7 {[%emt 0:00:02] [#]} (34... Qc8 $142 35. Rd6 Rxd6 36. exd6 Qc6 37. Nxe6 Qxd6) 35. Rxa6 $1 {[%emt 0:00:21][%mdl 512] White threatens Ra8+ and mate.} bxa6 {[%emt 0:00:20]} (35... Qc8 36. Rab6) 36. Rb8+ {[%emt 0:00:04]} Ke7 {[%emt 0:00:04]} 37. Qa3+ {[%emt 0:00:03] Weighted Error Value: White=0.07 (flawless) /Black=0.55} 1-0

[Event "FRA-ch Teams Top 16-B 2022"]
[Site "Chartres"]
[Date "2022.06.13"]
[Round "5.3"]
[White "Brochet, Philippe"]
[Black "Gozzoli, Yannick"]
[Result "1/2-1/2"]
[ECO "C90"]
[WhiteElo "2390"]
[BlackElo "2591"]
[Annotator "TA"]
[PlyCount "43"]
[EventDate "2022.06.09"]
[EventType "team-tourn"]
[EventCountry "FRA"]
[SourceTitle "playchess.com"]
[Source "ChessBase"]
[SourceQuality "1"]
[TimeControl "40/5400+30:1800+30"]

{[%evp 26,29,4,0,0,-6]} 1. e4 {[%emt 0:00:03]} e5 {[%emt 0:00:11]} 2. Nf3 {[%emt 0:00:05]} Nc6 {[%emt 0:00:11]} 3. Bc4 {[%emt 0:00:03]} Nf6 {[%emt 0:00:08]} 4. d3 {[%emt 0:00:09]} Be7 {[%emt 0:03:13]} 5. O-O {[%emt 0:01:53]} O-O {[%emt 0:00:54]} 6. Re1 {[%emt 0:00:35]} d6 {[%emt 0:00:06]} 7. c3 {[%emt 0:00:08]} Na5 {[%emt 0:03:28]} 8. Bb5 {[%emt 0:03:12]} a6 {[%emt 0:00:07]} 9. Ba4 {[%emt 0:00:04]} b5 {[%emt 0:00:04]} 10. Bc2 {[%emt 0:00:03]} c5 {[%emt 0:00:04]} 11. Nbd2 {[%emt 0:06:15]} Nc6 {[%emt 0:07:10]} 12. Nf1 {[%emt 0:02:20]} h6 {[%emt 0:01:20]} 13. h3 {[%emt 0:02:47]} Re8 {[%emt 0:01:04]} 14. d4 {[%emt 0:01:57]} cxd4 {[%emt 0:02:47] C90: Closed Ruy Lopez with 7...d6: Early deviations.} 15. cxd4 {[%emt 0:00:33] [#] A rather calm draw.} {Predecessor:} exd4 $146 16. Nxd4 Nxd4 17. Qxd4 Bb7 18. Ng3 d5 19. e5 Ne4 20. Qd3 Rc8 21. Nf5 Bf8 22. Bf4 {0-1 (74) Smirin,I (2678)-Salgado Lopez,I (2614) Barcelona 2011} 1/2-1/2

[Event "FRA-ch Teams Top 16-B 2022"]
[Site "Chartres"]
[Date "2022.06.13"]
[Round "5.4"]
[White "Cornette, Matthieu"]
[Black "Dionisi, Thomas"]
[Result "1/2-1/2"]
[ECO "C64"]
[WhiteElo "2570"]
[BlackElo "2408"]
[Annotator "TA"]
[PlyCount "41"]
[EventDate "2022.06.09"]
[EventType "team-tourn"]
[EventCountry "FRA"]
[SourceTitle "playchess.com"]
[Source "ChessBase"]
[SourceQuality "1"]
[TimeControl "40/5400+30:1800+30"]

{[%evp 10,41,43,43,32,38,33,35,24,35,47,43,42,28,14,0,26,22,43,23,99,54,43,47,88,62,68,48,78,19,14,9,14,1]} 1. e4 {[%emt 0:00:05]} e5 {[%emt 0:00:05]} 2. Nf3 {[%emt 0:00:07]} Nc6 {[%emt 0:00:04]} 3. Bb5 {[%emt 0:00:11]} a6 {[%emt 0:00:05]} 4. Ba4 {[%emt 0:00:05]} Bc5 {[%emt 0:00:10]} 5. c3 {[%emt 0:01:17]} Nge7 {[%emt 0:00:05]} 6. O-O {[%emt 0:01:12]} Ba7 {[%emt 0:00:07] C64: Ruy Lopez: Classical Defence (3...Bc5) except 4 0-0 Nf6.} 7. d4 {[%emt 0:00:25]} Ng6 {[%emt 0:00:08]} 8. Be3 {[%emt 0:01:12]} O-O {[%emt 0:00:21] White is slightly better.} 9. Re1 {[%emt 0:01:04] [#]} exd4 $146 {[%emt 0:07:51]} ({Predecessor:} 9... d5 10. exd5 Qxd5 11. dxe5 Qxd1 12. Bxd1 Bxe3 13. Rxe3 Rd8 14. Bc2 Bg4 15. Bxg6 fxg6 {½-½ (87) Iordachescu,V (2534)-Ivanisevic,I (2499) Dubai 2021}) 10. cxd4 {[%emt 0:00:49]} d5 {[%emt 0:00:04]} 11. Bxc6 {[%emt 0:07:29]} bxc6 {[%emt 0:00:02]} 12. e5 {[%emt 0:00:07]} f6 {[%emt 0:15:50]} 13. exf6 {[%emt 0:02:42]} Qxf6 {[%emt 0:00:27]} 14. Nbd2 {[%emt 0:00:23][%cal Of3e5]} Nf4 {[%emt 0:30:17]} (14... Rb8 $11 {keeps the balance.}) 15. Bxf4 {[%emt 0:07:35]} Qxf4 {[%emt 0:00:01]} 16. Qc2 {[%emt 0:00:21]} Qd6 {[%emt 0:17:27]} 17. Nb3 {[%emt 0:13:31]} ({Of course not} 17. Ng5 Bf5 18. Qc3 c5 $15) 17... Bf5 {[%emt 0:01:24]} 18. Qc3 {[%emt 0:02:52]} Be4 {[%emt 0:00:44]} 19. Re3 {[%emt 0:14:14]} ({White should try} 19. Nfd2 $16) 19... Bxf3 $11 {[%emt 0:13:28]} 20. Rxf3 {[%emt 0:03:32]} Rxf3 {[%emt 0:00:05]} 21. Qxf3 {[%emt 0:41:47] Weighted Error Value: White=0.14 (very precise) /Black=0.18 (very precise)} 1/2-1/2

[Event "FRA-ch Teams Top 16-B 2022"]
[Site "Chartres"]
[Date "2022.06.13"]
[Round "5.5"]
[White "Chabanon, Jean-Luc"]
[Black "Movsesian, Sergei"]
[Result "0-1"]
[ECO "E11"]
[WhiteElo "2432"]
[BlackElo "2600"]
[Annotator "TA"]
[PlyCount "66"]
[EventDate "2022.06.09"]
[EventType "team-tourn"]
[EventCountry "FRA"]
[SourceTitle "playchess.com"]
[Source "ChessBase"]
[SourceQuality "1"]
[TimeControl "40/5400+30:1800+30"]

{[%evp 12,66,12,10,32,8,21,0,-6,-21,0,-9,7,0,0,-50,-19,-61,-53,-68,-54,-61,-50,-64,-50,-52,-48,-63,-46,-68,-27,-68,-59,-98,-95,-102,-103,-87,-83,-137,-103,-110,-86,-415,-447,-405,-445,-449,-429,-1255,-1241,-29988,-29989,-29989,-29990,-29996,-29997]} 1. d4 {[%emt 0:00:06]} Nf6 {[%emt 0:00:08]} 2. c4 {[%emt 0:00:15]} e6 {[%emt 0:00:20]} 3. Nf3 {[%emt 0:01:20]} d5 {[%emt 0:00:42]} 4. g3 {[%emt 0:03:38]} Bb4+ {[%emt 0:01:33]} 5. Bd2 {[%emt 0:01:41]} a5 {[%emt 0:00:33]} 6. Bg2 {[%emt 0:00:39]} O-O {[%emt 0:00:40]} 7. Qc2 {[%emt 0:07:44]} c5 {[%emt 0:01:11] E11: Bogo-Indian.} 8. dxc5 {[%emt 0:07:25]} d4 {[%emt 0:02:29]} 9. O-O {[%emt 0:18:23]} Bxc5 {[%emt 0:02:18] The position is equal.} 10. Ne5 {[%emt 0:06:55] [#] Against Nc6} h6 $146 {[%emt 0:12:02]} (10... Nbd7 $5 {[%cal Rd7e5]} 11. Nd3 e5 $11) ({Predecessor:} 10... Bd6 11. Nd3 e5 12. c5 Bc7 13. Bg5 h6 14. Bxf6 Qxf6 15. Nd2 Nc6 16. a3 a4 {0-1 (76) Andreikin,D (2729)-Vidit,S (2723) Chess.com INT 2022}) 11. Nd3 {[%emt 0:05:57]} Qe7 {[%emt 0:05:04]} 12. Nxc5 {[%emt 0:11:54]} Qxc5 {[%emt 0:01:58]} 13. a3 {[%emt 0:04:00]} (13. e3 $11) 13... Qh5 {[%emt 0:04:03]} 14. f3 {[%emt 0:01:51]} Nc6 {[%emt 0:02:46]} 15. Be1 {[%emt 0:06:10]} Qc5 {[%emt 0:05:00] [#] Strongly threatening ...d3+.} 16. Bf2 {[%emt 0:04:22]} e5 {[%emt 0:03:59]} 17. Nd2 {[%emt 0:00:42]} Be6 {[%emt 0:01:11]} 18. b3 {[%emt 0:02:13]} Rac8 {[%emt 0:02:47]} 19. Rfc1 {[%emt 0:00:48]} Rfe8 {[%emt 0:07:16]} 20. Qb1 {[%emt 0:01:57]} Kh8 {[%emt 0:03:23] Black is more active.} 21. g4 {[%emt 0:00:49]} Qf8 {[%emt 0:03:16][%cal Oe5e4]} 22. h3 {[%emt 0:00:58]} Nd7 {[%emt 0:03:35]} 23. Ne4 {[%emt 0:05:47]} f5 {[%emt 0:03:20]} 24. Ng3 {[%emt 0:00:04]} g6 {[%emt 0:02:23][%cal Bg7g6,Bg6f5][%mdl 32]} 25. h4 {[%emt 0:00:16]} ({White should try} 25. b4) 25... h5 {[%emt 0:02:12]} 26. gxf5 {[%emt 0:02:23]} gxf5 {[%emt 0:01:24] aiming for ...Qf6.} 27. f4 $2 {[%emt 0:00:36][%mdl 8192] This costs White the game.} (27. Bh3 $17 {is tougher.}) 27... exf4 $19 {[%emt 0:03:40]} 28. Bxc6 {[%emt 0:00:10]} Rxc6 {[%emt 0:02:14]} 29. Bxd4+ {[%emt 0:00:05]} Kh7 {[%emt 0:23:33] And now ...Qe7 would win.} 30. Nf1 {[%emt 0:03:25]} (30. Rc3 $142) 30... Qg8+ {[%emt 0:00:00]} 31. Kh1 {[%emt 0:01:29] [#]} Bd5+ $1 {[%emt 0:00:00][%mdl 512] Black mates.} 32. cxd5 {[%emt 0:00:22]} Qxd5+ {[%emt 0:00:00]} 33. Kg1 {[%emt 0:00:49]} Rg6+ {[%emt 0:00:00] Weighted Error Value: White=0.62/Black=0.08 (flawless)} 0-1

[Event "FRA-ch Teams Top 16-B 2022"]
[Site "Chartres"]
[Date "2022.06.13"]
[Round "5.6"]
[White "Degraeve, Jean-Marc"]
[Black "Godart, Francois"]
[Result "1-0"]
[ECO "C49"]
[WhiteElo "2520"]
[BlackElo "2399"]
[Annotator "TA"]
[PlyCount "105"]
[EventDate "2022.06.09"]
[EventType "team-tourn"]
[EventCountry "FRA"]
[SourceTitle "playchess.com"]
[Source "ChessBase"]
[SourceQuality "1"]
[TimeControl "40/5400+30:1800+30"]

{[%evp 12,105,12,9,8,0,0,0,0,0,-8,0,0,-57,0,0,0,0,18,16,22,18,37,35,37,44,40,38,40,45,45,41,220,25,31,26,35,32,43,61,45,39,62,42,88,14,16,24,22,0,20,10,32,16,18,19,55,50,338,338,321,181,235,234,229,195,197,181,226,156,247,166,172,172,172,174,172,166,168,162,159,138,138,100,138,104,113,102,110,109,375,362,322,327,728,191]} 1. e4 {[%emt 0:00:04]} e5 {[%emt 0:00:10]} 2. Nf3 {[%emt 0:00:23]} Nc6 {[%emt 0:00:07]} 3. Nc3 {[%emt 0:03:46]} Nf6 {[%emt 0:03:59]} 4. Bb5 {[%emt 0:00:40]} Bb4 {[%emt 0:00:36]} 5. O-O {[%emt 0:01:00]} O-O {[%emt 0:00:12]} 6. Bxc6 {[%emt 0:00:47]} dxc6 {[%emt 0:00:31]} 7. d3 {[%emt 0:00:13]} Nd7 {[%emt 0:02:30] C49: Four Knights: 4 Bb5 Bb4.} 8. Ne2 {[%emt 0:00:56]} Re8 {[%emt 0:01:24]} 9. b3 {[%emt 0:09:21]} Nf8 {[%emt 0:07:09] The position is equal.} 10. Bb2 {[%emt 0:00:44]} Ng6 {[%emt 0:01:25]} 11. Ng3 {[%emt 0:01:23] [#]} Bd6 $146 {[%emt 0:03:24]} ({Predecessor:} 11... c5 12. h3 c6 13. Nh5 Qa5 14. Nxe5 Nxe5 15. f4 Bc3 16. Bxc3 Qxc3 17. fxe5 Qxe5 {1-0 (60) Seps,M (2253)-Zimina,O (2371) Prague 2016}) 12. d4 {[%emt 0:17:33]} (12. Re1 $11) 12... exd4 {[%emt 0:19:03]} (12... Bg4 $15) 13. Qxd4 $11 {[%emt 0:05:24][%csl Gb2][%cal Rd4g7]} f6 {[%emt 0:05:24]} 14. Rfe1 {[%emt 0:12:15]} Bg4 {[%emt 0:16:29]} 15. Qc4+ {[%emt 0:04:05]} Kh8 {[%emt 0:01:50]} 16. Nd4 {[%emt 0:00:21]} Be5 {[%emt 0:08:55]} 17. f3 {[%emt 0:01:21]} Bd7 {[%emt 0:00:33]} 18. Rad1 {[%emt 0:00:52]} Qc8 {[%emt 0:01:59][%cal Oc6c5]} 19. Ba1 {[%emt 0:04:17]} a5 {[%emt 0:05:45]} 20. a4 {[%emt 0:03:16]} Qb8 {[%emt 0:00:58]} 21. Ngf5 {[%emt 0:02:02]} Ne7 $2 {[%emt 0:05:06] [#]} ({Black should play} 21... Rg8 $14) 22. Qf7 $2 {[%emt 0:13:18]} (22. Nxg7 $1 $18 {[%mdl 512]} Kxg7 23. f4) 22... Bxf5 {[%emt 0:06:00]} 23. Nxf5 {[%emt 0:08:14]} Nxf5 {[%emt 0:01:18]} 24. exf5 {[%emt 0:00:09] Rd7 is the strong threat.} Rf8 {[%emt 0:04:08]} 25. Qc4 {[%emt 0:02:07]} Qa7+ {[%emt 0:01:58]} 26. Kh1 {[%emt 0:04:20] Active counter play!} Bd6 {[%emt 0:01:11]} 27. Re6 {[%emt 0:00:25]} Rad8 {[%emt 0:00:43]} (27... Qf2 $14) 28. Rde1 {[%emt 0:02:46]} ({White should try} 28. Qe2 $1 $16) 28... Qf2 {[%emt 0:00:27][%cal Ob7b5]} 29. R6e2 {[%emt 0:00:55]} Qc5 {[%emt 0:00:29]} 30. Qg4 {[%emt 0:00:53]} Qd5 {[%emt 0:00:39]} 31. Bc3 {[%emt 0:00:21] Inhibits Bb4.} b6 {[%emt 0:00:55]} (31... Qc5 $5 {[%cal Rc5c3]} 32. Bd4 Qb4 $11) 32. h4 {[%emt 0:00:09][%cal Bh2h4,Bh4h5,Bh5h6][%mdl 32]} Qc5 {[%emt 0:00:37]} 33. Re3 $40 {[%emt 0:00:46][%mdl 128] Black needs to defend precisely.} Rg8 {[%emt 0:00:31]} (33... b5 {is interesting.} 34. R1e2 Qa3 35. Bxa5 Ra8) 34. h5 {[%emt 0:00:27][%cal Oh5h6]} Rd7 $2 {[%emt 0:00:20][%mdl 8192]} (34... h6 $14) 35. h6 $1 $18 {[%emt 0:01:27] Black must now prevent hxg7+.} Bf8 {[%emt 0:00:26]} 36. Qf4 {[%emt 0:00:55]} (36. hxg7+ $142 Bxg7 37. f4) 36... gxh6 {[%emt 0:00:40]} (36... Rf7 {might work better.}) 37. Bxf6+ {[%emt 0:00:06]} Bg7 {[%emt 0:00:02]} 38. Bxg7+ {[%emt 0:00:34]} Rdxg7 {[%emt 0:00:03]} 39. R1e2 {[%emt 0:00:19]} Rf7 {[%emt 0:01:06]} 40. Re5 {[%emt 0:00:38]} (40. Qxh6 $6 Rxf5 41. Re5 Qf8 42. Qxc6 Qf6 43. Qxf6+ Rxf6) 40... Qf8 {[%emt 0:00:31]} (40... Qd6 $16 41. Qe3 Qf6) 41. Re6 {[%emt 0:10:00]} Rxf5 {[%emt 0:09:09]} 42. Qd4+ {[%emt 0:00:11]} ({Worse is} 42. Qxh6 Rxf3 $1 43. Qxf8 (43. gxf3 $2 {leads to mate.} Qxf3+ 44. Kh2 Qg3+ 45. Kh1 Qg1#) 43... Rfxf8 $11) ({Weaker is} 42. Qxc7 Rh5+ 43. Kg1 Qc5+ 44. Rf2 Rd5 $11) 42... Qg7 {[%emt 0:00:05]} 43. Qxg7+ {[%emt 0:00:05]} Kxg7 {[%emt 0:00:54]} 44. Rxc6 {[%emt 0:00:08][%mdl 4096] Endgame KRR-KRR} Rf7 {[%emt 0:00:06]} 45. Re4 {[%emt 0:00:19]} Rd8 {[%emt 0:00:50]} 46. Rg4+ {[%emt 0:00:09]} Kf8 {[%emt 0:00:26]} 47. Rxh6 {[%emt 0:00:09]} Rd1+ {[%emt 0:00:18]} 48. Kh2 {[%emt 0:00:07]} Rd2 {[%emt 0:00:04][%csl LRc2,LRf3] [#]} 49. Rc6 $1 {[%emt 0:00:33]} Rxf3 {[%emt 0:00:19]} 50. Rxc7 {[%emt 0:00:42]} Rff2 $2 {[%emt 0:00:06][%mdl 8192]} (50... Rf6 $16 {was worth a try.}) 51. Rxh7 {[%emt 0:04:37]} Rxc2 {[%emt 0:00:08]} 52. Rh6 {[%emt 0:00:51]} b5 $2 {[%emt 0:00:29]} (52... Rf5 53. Rxb6 Rh5+ 54. Kg1 Re5) 53. Rh5 $2 {[%emt 0:00:53] Weighted Error Value: White=0.24 (precise) /Black=0.43} (53. axb5 Ke7 54. b6) 1-0